lending/lending_fUSD_20250102
["ID","MTS","AMOUNT","RATE_DAILY","PERIOD"]
[347455104,1735830641268,-674.18254825,9.99e-05,2]
[347455106,1735830641279,-301.92197159,9.99e-05,2]
[347455110,1735830641308,-18704.04044536,9.99e-05,2]
[347455112,1735830641319,-257669.98487958,9.99e-05,2]
[347455115,1735830641337,-75159.53447529,9.99e-05,2]
[347455117,1735830641351,-25820.6240994,9.99e-05,2]
[347455119,1735830641362,-114765.9934315,9.99e-05,2]
[347455121,1735830641373,-2370.58391407,9.99e-05,2]
[347455123,1735830641385,-1400.47939215,9.99e-05,2]
[347455134,1735830641477,-33187.47815547,9.99e-05,2]
[347455136,1735830641488,-3588.648222,9.99e-05,2]
[347455138,1735830641500,-17754.94105895,9.99e-05,2]
[347455140,1735830641511,-2034.52399846,9.99e-05,2]
[347455333,1735830643330,-4422.2573921,9.99e-05,2]
[347455337,1735830643343,-565.96035156,9.99e-05,2]
[347455341,1735830643355,-465.465853,9.99e-05,2]
[347455344,1735830643371,-4260.09096714,9.99e-05,2]
[347455348,1735830643382,-2417.74338737,9.99e-05,2]
[347455362,1735830643495,-9653.80000013,9.99e-05,2]
[347455365,1735830643507,-2033.70692799,9.99e-05,2]
[347455367,1735830643517,-810.08527622,9.99e-05,2]
[347455369,1735830643529,-833.87987711,9.99e-05,2]
[347455371,1735830643541,-13636.89355177,9.99e-05,2]
[347455381,1735830643627,-22322.03929,9.99e-05,2]
[347455383,1735830643639,-616.40024748,9.99e-05,2]
[347455393,1735830643721,-1092.13677785,9.99e-05,2]
[347455395,1735830643732,-1983.898276,9.99e-05,2]
[347455397,1735830643743,-5033.12267918,9.99e-05,2]
[347455399,1735830643754,-3932.74721704,9.99e-05,2]
[347455408,1735830643821,-40347.95024,9.99e-05,2]
[347455410,1735830643833,-1164.90682513,9.99e-05,2]
[347455699,1735830646693,-90943.37067011,9.99e-05,2]
[347455701,1735830646704,-30451.53233222,9.99e-05,2]
[347455703,1735830646716,-39727.51292869,9.99e-05,2]
[347455705,1735830646727,-25570.70545284,9.99e-05,2]
[347455707,1735830646738,-116997.45021944,9.99e-05,2]
[347455709,1735830646749,-36985.99698623,9.99e-05,2]
[347455712,1735830646760,-994.50049314,9.99e-05,2]
[347455714,1735830646772,-1009.0940635,9.99e-05,2]
[347455719,1735830646807,-43153.78343159,9.99e-05,2]
[347455721,1735830646820,-250575.47453898,9.99e-05,2]
[347455723,1735830646834,-418.18435819,9.99e-05,2]
[347455727,1735830646863,-6576.06436248,9.99e-05,2]
[347455729,1735830646875,-515.92104,9.99e-05,2]
[347455733,1735830646903,-5691.61379999,9.99e-05,2]
[347455735,1735830646914,-777.741585,9.99e-05,2]
[347455737,1735830646925,-3759.5482,9.99e-05,2]
[347455740,1735830646937,-1596.74839296,9.99e-05,2]
[347455752,1735830647048,-390.21998,9.99e-05,2]
[347455755,1735830647059,-918.0,9.99e-05,2]
[347455757,1735830647071,-1510.0603134,9.99e-05,2]
[347455759,1735830647090,-42217.3649194,9.99e-05,2]
[347455761,1735830647102,-251639.09518473,9.99e-05,2]
[347455765,1735830647126,-3822.48,9.99e-05,2]
[347455784,1735830664203,500.0,9.1e-05,3]
[347455785,1735830666301,1000.0,9.2e-05,3]
[347455786,1735830668454,170.64014487,9.3e-05,3]
[347455787,1735830668476,1429.35985513,9.3e-05,3]
[347455788,1735830670691,2100.0,9.4e-05,3]
[347455789,1735830672677,2600.0,9.5e-05,3]
[347455790,1735830675101,500.0,9.6e-05,3]
[347455791,1735830829135,2500.0,9.535e-05,2]
[347455792,1735830829166,870.64014487,9.535e-05,2]
[347455793,1735830829190,129.35985513,9.535e-05,2]
[347455794,1735830832582,151.997,9.49e-05,2]
[347455796,1735830946252,10000.0,0.00023,120]
[347455797,1735831039982,250.0,9.399e-05,2]
[347455798,1735831101525,9129.11,9.302e-05,2]
[347455799,1735831160443,339.53314487,9.345e-05,2]
[347455800,1735831160470,180.72685513,9.345e-05,2]
[347455801,1735831412199,360.25,8.219e-05,2]
[347455802,1735831442143,300.0,0.00023,120]
[347455803,1735831456020,5790.84,9.589e-05,2]
[347455804,1735831460830,600.0,0.00023,120]
[347455805,1735831506331,151.613,9.49e-05,2]
[347455806,1735831509345,150.0,8.975e-05,2]
[347455821,1735831806522,-1000.0,9.651e-05,2]
[347455822,1735831806546,-1000.0,9.652e-05,2]
[347455823,1735831806573,-1366.57014487,9.652e-05,2]
[347455824,1735831811813,-10000.0,9.652e-05,2]
[347455825,1735831816265,-10000.0,9.652e-05,2]
[347455826,1735831820528,-10000.0,9.652e-05,2]
[347455827,1735831824926,-10000.0,9.652e-05,2]
[347455828,1735831828763,-10000.0,9.652e-05,2]
[347455838,1735831832518,-413.21193929,9.652e-05,2]
[347455839,1735831832537,-1221.47,9.652e-05,2]
[347455840,1735831832549,-600.0,9.652e-05,2]
[347455841,1735831832588,-17292.28780761,9.652e-05,2]
[347455842,1735831832598,-23131.0,9.693e-05,2]
[347455843,1735831832607,-1000.62877865,9.889e-05,2]
[347455844,1735831832659,-8503.20122135,9.889e-05,2]
[347455845,1735831832668,-942.61197146,9.889e-05,2]
[347455846,1735831832678,-636.0,9.971e-05,2]
[347455847,1735831832690,-751.64331782,9.972e-05,2]
[347455848,1735831832700,-751.64331782,9.972e-05,2]
[347455849,1735831832709,-164.784,9.974e-05,2]
[347455850,1735831832719,-959.789,9.974e-05,2]
[347455851,1735831832728,-751.64331782,9.979e-05,2]
[347455852,1735831832739,-751.64331782,9.98e-05,2]
[347455853,1735831832748,-751.64331782,9.983e-05,2]
[347455854,1735831832757,-1055.48808993,9.989e-05,3]
[347455855,1735831832766,-1055.48808993,9.989e-05,3]
[347455856,1735831832777,-153.81257287,9.989e-05,3]
[347455857,1735831832856,-901.67551706,9.989e-05,3]
[347455858,1735831832865,-1055.48808995,9.989e-05,3]
[347455859,1735831832875,-898.75214287,9.989e-05,3]
[347455860,1735831832888,-156.73594706,9.989e-05,3]
[347455861,1735831832898,-500.0,9.989e-05,2]
[347455862,1735831832909,-500.0,9.989e-05,2]
[347455863,1735831832919,-471.59743,9.989e-05,2]
[347455864,1735831832929,-500.0,9.989e-05,2]
[347455865,1735831832938,-293.97076684,9.989e-05,2]
[347455866,1735831832950,-206.02923316,9.989e-05,2]
[347455867,1735831832959,-500.0,9.989e-05,2]
[347455868,1735831832970,-410.17076384,9.989e-05,2]
[347455872,1735831833002,-89.82923616,9.989e-05,2]
[347455874,1735831833012,-560.37925678,9.989e-05,2]
[347455875,1735831833022,-249.79150706,9.989e-05,2]
[347455879,1735831834527,1000.0,9.592e-05,2]
[347455881,1735831838417,-250.20849294,9.989e-05,2]
[347455882,1735831838427,-235.05392122,9.989e-05,2]
[347455883,1735831838461,-264.94607878,9.989e-05,2]
[347455884,1735831838470,-170.05986129,9.989e-05,2]
[347455885,1735831838481,-329.94013871,9.989e-05,2]
[347455886,1735831838490,-500.0,9.989e-05,2]
[347455887,1735831838501,-500.0,9.989e-05,2]
[347455888,1735831838510,-500.0,9.989e-05,2]
[347455889,1735831838520,-500.0,9.989e-05,2]
[347455890,1735831838530,-4042.54044917,9.989e-05,2]
[347455891,1735831838544,-8597.08409304,9.989e-05,2]
[347455892,1735831838556,-2360.37545779,9.989e-05,2]
[347455893,1735831838566,-4000.2693626,9.99e-05,2]
[347455894,1735831838577,-321.89201208,9.99e-05,2]
[347455895,1735831838589,-20669.6144265,9.99e-05,2]
[347455896,1735831838617,-1374.12933306,9.99e-05,2]
[347456117,1735831840987,-1937.7268888,9.99e-05,2]
[347456119,1735831840999,-523.13943,9.99e-05,2]
[347456371,1735831843534,-800.42686849,9.99e-05,2]
[347456387,1735831843684,-6178.1991742,9.99e-05,2]
[347456665,1735831846494,-29201.16513275,9.99e-05,2]
[347456667,1735831846505,-12918.12146189,9.99e-05,2]
[347456669,1735831846517,-2131.153454,9.99e-05,2]
[347456673,1735831846547,-7724.46988362,9.99e-05,2]
[347457053,1735831856042,6789.9522,9.593e-05,2]
[347457055,1735831874127,2035.0627,9.593e-05,2]
[347457056,1735831884146,154.32,9.49e-05,2]
[347457057,1735831889672,20.6651,9.596e-05,2]
[347457058,1735831889696,10000.0,9.596e-05,2]
[347457059,1735831889718,10000.0,9.596e-05,2]
[347457060,1735831889739,6724.3349,9.596e-05,2]
[347457061,1735832047841,410.3,9.549e-05,2]
[347457064,1735832108017,250.0,9.275e-05,2]
[347457065,1735832310783,163.826,9.496e-05,2]
[347457066,1735832310816,1291.652,9.496e-05,2]
[347457067,1735832328419,342.23,8.219e-05,2]
[347457068,1735832418176,817.6571,9.59e-05,2]
[347457069,1735832418198,10000.0,9.59e-05,2]
[347457070,1735832418220,10000.0,9.59e-05,2]
[347457071,1735832418244,10000.0,9.59e-05,2]
[347457072,1735832418267,10000.0,9.59e-05,2]
[347457073,1735832418290,10000.0,9.59e-05,2]
[347457074,1735832418311,10000.0,9.59e-05,2]
[347457075,1735832418333,10000.0,9.59e-05,2]
[347457076,1735832418354,10000.0,9.59e-05,2]
[347457077,1735832418376,10000.0,9.59e-05,2]
[347457078,1735832418398,7660.5383,9.59e-05,2]
[347457079,1735832508654,332.3762,9.59e-05,2]
[347457081,1735832510006,2007.0855,9.59e-05,2]
[347457082,1735832510029,492.9145,9.59e-05,2]
[347457083,1735832574342,154.263,9.49e-05,2]
[347457084,1735832695207,2500.0,9.59e-05,2]
[347457085,1735832709399,150.0,8.778e-05,2]
[347457086,1735832709721,150.0,9.266e-05,2]
[347457087,1735832712254,150.0,8.778e-05,2]
[347457088,1735832720052,150.0,8.778e-05,2]
[347457089,1735832746292,6252.8225,9.57e-05,2]
[347457090,1735832746314,10000.0,9.57e-05,2]
[347457091,1735832746337,10000.0,9.57e-05,2]
[347457092,1735832746359,10000.0,9.57e-05,2]
[347457093,1735832746382,10000.0,9.57e-05,2]
[347457094,1735832746404,10000.0,9.57e-05,2]
[347457095,1735832746429,10000.0,9.57e-05,2]
[347457096,1735832746452,10000.0,9.57e-05,2]
[347457097,1735832746478,10000.0,9.57e-05,2]
[347457098,1735832746501,10000.0,9.57e-05,2]
[347457099,1735832746523,10000.0,9.57e-05,2]
[347457100,1735832746545,10000.0,9.57e-05,2]
[347457101,1735832746568,10000.0,9.57e-05,2]
[347457102,1735832746590,10000.0,9.57e-05,2]
[347457104,1735832746612,10000.0,9.57e-05,2]
[347457105,1735832746634,10000.0,9.57e-05,2]
[347457106,1735832746656,10000.0,9.57e-05,2]
[347457107,1735832746679,10000.0,9.57e-05,2]
[347457108,1735832746700,10000.0,9.57e-05,2]
[347457109,1735832746722,10000.0,9.57e-05,2]
[347457110,1735832746743,10000.0,9.57e-05,2]
[347457111,1735832746766,10000.0,9.57e-05,2]
[347457112,1735832746789,10000.0,9.57e-05,2]
[347457113,1735832746811,10000.0,9.57e-05,2]
[347457114,1735832746833,10000.0,9.57e-05,2]
[347457115,1735832746855,10000.0,9.57e-05,2]
[347457116,1735832746877,10000.0,9.57e-05,2]
[347457117,1735832746899,10000.0,9.57e-05,2]
[347457118,1735832746922,10000.0,9.57e-05,2]
[347457119,1735832746945,10000.0,9.57e-05,2]
[347457120,1735832746970,10000.0,9.57e-05,2]
[347457121,1735832746991,10000.0,9.57e-05,2]
[347457122,1735832747014,10000.0,9.57e-05,2]
[347457123,1735832747039,10000.0,9.57e-05,2]
[347457124,1735832747064,10000.0,9.57e-05,2]
[347457125,1735832747087,10000.0,9.57e-05,2]
[347457126,1735832747111,10000.0,9.57e-05,2]
[347457127,1735832747133,10000.0,9.57e-05,2]
[347457128,1735832747155,10000.0,9.57e-05,2]
[347457129,1735832747182,10000.0,9.57e-05,2]
[347457130,1735832747203,10000.0,9.57e-05,2]
[347457131,1735832747225,10000.0,9.57e-05,2]
[347457132,1735832747247,10000.0,9.57e-05,2]
[347457133,1735832747269,10000.0,9.57e-05,2]
[347457134,1735832747290,10000.0,9.57e-05,2]
[347457135,1735832747314,10000.0,9.57e-05,2]
[347457136,1735832747337,10000.0,9.57e-05,2]
[347457137,1735832747360,10000.0,9.57e-05,2]
[347457138,1735832747382,10000.0,9.57e-05,2]
[347457139,1735832747403,10000.0,9.57e-05,2]
[347457140,1735832747429,6617.6435136,9.57e-05,2]
[347457141,1735832816184,-3940.23248032,9.67e-05,2]
[347457148,1735832980732,250.0,9.105e-05,2]
[347457155,1735833031920,-10741.91861968,9.67e-05,2]
[347457156,1735833031930,-513.8292,9.67e-05,2]
[347457157,1735833031940,-5000.0,9.67e-05,2]
[347457158,1735833031950,-17881.43627802,9.67e-05,2]
[347457159,1735833031962,-6641.34222198,9.67e-05,2]
[347457160,1735833031971,-21680.05307693,9.689e-05,2]
[347457161,1735833031981,-281.29419928,9.753e-05,2]
[347457162,1735833031991,-150.0,9.753e-05,2]
[347457163,1735833032000,-188.04138848,9.753e-05,2]
[347457164,1735833032011,-1846.02649844,9.769e-05,3]
[347457165,1735833032022,-500.0,9.769e-05,2]
[347457166,1735833032031,-617.81991742,9.769e-05,2]
[347457167,1735833032041,-15000.0,9.769e-05,2]
[347457168,1735833032051,-529645.03162708,9.77e-05,2]
[347457169,1735833032062,-13173.59999958,9.77e-05,2]
[347457170,1735833032180,-437.11199998,9.77e-05,2]
[347457171,1735833032191,-3090.44816829,9.77e-05,2]
[347457211,1735833038003,-2216.0200985,9.77e-05,2]
[347457216,1735833038016,-155123.10966636,9.77e-05,2]
[347457218,1735833038027,-3177.60972637,9.77e-05,2]
[347457220,1735833038038,-1596.44692668,9.77e-05,2]
[347457222,1735833038049,-3171.67588857,9.77e-05,2]
[347457224,1735833038060,-575.8403509,9.77e-05,2]
[347457227,1735833038071,-555.53480451,9.77e-05,2]
[347457242,1735833038215,-1760.959996,9.77e-05,2]
[347457250,1735833038285,-447.500003,9.77e-05,2]
[347457253,1735833038296,-1448.61580386,9.77e-05,2]
[347457401,1735833039811,-4839.9022,9.77e-05,2]
[347457409,1735833039886,-289.28799901,9.77e-05,2]
[347457429,1735833040111,-4925.6052065,9.77e-05,2]
[347457431,1735833040121,-539.88515666,9.77e-05,2]
[347457684,1735833042699,-8283.56210649,9.77e-05,2]
[347457966,1735833045999,-5757.32615148,9.77e-05,2]
[347457969,1735833046150,-3160.8649195,9.77e-05,2]
[347457970,1735833049888,416.2,9.205e-05,2]
[347457971,1735833064472,200.0,9e-05,3]
[347457972,1735833066629,500.0,9.1e-05,3]
[347457973,1735833069182,800.0,9.2e-05,3]
[347457974,1735833070918,1100.0,9.3e-05,3]
[347457975,1735833071520,116.1564864,9.49e-05,2]
[347457976,1735833071545,41.0935136,9.49e-05,2]
[347457977,1735833072980,1400.0,9.4e-05,3]
[347457978,1735833075112,200.0,9.5e-05,3]
[347457979,1735833077325,200.0,9.6e-05,3]
[347457980,1735833089491,1000.0,9.087e-05,2]
[347457981,1735833224990,377.76,8.219e-05,2]
[347457982,1735833510409,1595.506,9.575e-05,2]
[347457983,1735833510445,163.347,9.575e-05,2]
[347457984,1735833718719,157.211,9.49e-05,2]
[347457985,1735833859701,250.0,9.075e-05,2]
[347457986,1735833881542,4615.0824864,9.57e-05,2]
[347457987,1735833881563,6481.6831136,9.57e-05,2]
[347457988,1735833894866,5405.40966529,0.00023,120]
[347457990,1735833984450,1000.0,9.093e-05,2]
[347457991,1735833986987,250.0,9.093e-05,2]
[347457992,1735834017704,1267.04,9.038e-05,2]
[347457994,1735834076842,1001.2768864,9.054e-05,2]
[347457995,1735834076865,10000.0,9.054e-05,2]
[347457996,1735834076894,7374.1431136,9.054e-05,2]
[347457997,1735834113584,71204.05,9.006e-05,2]
[347457998,1735834121629,186.33,9.006e-05,2]
[347457999,1735834124290,11009.67,9.006e-05,2]
[347458000,1735834124318,12890.33,9.006e-05,2]
[347458001,1735834131299,5301.5359,9.57e-05,2]
[347458002,1735834146828,3000.0,0.00015,30]
[347458003,1735834154369,3000.0,0.00015,30]
[347458004,1735834162243,14441.7019,9.58e-05,2]
[347458005,1735834162386,3000.0,0.00015,30]
[347458006,1735834170660,3000.0,0.00015,30]
[347458007,1735834177851,3000.0,0.00015,30]
[347458008,1735834186429,3000.0,0.00015,30]
[347458012,1735834193967,3000.0,0.00015,30]
[347458013,1735834200546,3000.0,0.00015,30]
[347458018,1735834216779,200.0,9.077e-05,2]
[347458019,1735834223476,1974.35,0.00015,30]
[347458021,1735834233145,-2810.3438178,9.669e-05,2]
[347458022,1735834233157,-520.70061848,9.669e-05,2]
[347458023,1735834233187,-7399.79093182,9.669e-05,2]
[347458024,1735834233197,-1977.93201929,9.669e-05,2]
[347458025,1735834233206,-11202.78052448,9.67e-05,2]
[347458026,1735834233274,-27981.88257552,9.67e-05,2]
[347458027,1735834233284,-35648.791,9.67e-05,2]
[347458028,1735834233295,-1654.2441,9.67e-05,2]
[347458029,1735834233304,-9805.0099,9.67e-05,2]
[347458030,1735834233314,-1114.6308,9.67e-05,2]
[347458031,1735834233323,-19951.079,9.67e-05,2]
[347458032,1735834233339,-223.8747,9.67e-05,2]
[347458033,1735834233349,-929.8745,9.67e-05,2]
[347458034,1735834233358,-25795.0,9.672e-05,2]
[347458035,1735834233367,-1250.0,9.69e-05,2]
[347458036,1735834233378,-1250.0,9.69e-05,2]
[347458037,1735834233387,-500.0,9.743e-05,2]
[347458038,1735834233397,-500.0,9.769e-05,2]
[347458039,1735834233407,-6745.0,9.769e-05,2]
[347458040,1735834233417,-250000.0,9.77e-05,2]
[347458041,1735834233426,-506.0,9.77e-05,2]
[347458042,1735834233436,-645191.33482699,9.77e-05,2]
[347458045,1735834233509,-789.21824153,9.77e-05,2]
[347458046,1735834233543,-6623.3605065,9.77e-05,2]
[347458049,1735834233561,-33965.60972401,9.77e-05,2]
[347458058,1735834237612,-3171.73359521,9.77e-05,2]
[347458059,1735834237623,-6118.58123631,9.77e-05,2]
[347458606,1735834244217,454.47,9.515e-05,2]
[347458610,1735834246026,-911.77068485,9.721e-05,2]
[347458611,1735834246091,-210.64641548,9.721e-05,2]
[347458613,1735834247848,479.63,9.288e-05,2]
[347458614,1735834256312,300.0,9.288e-05,2]
[347458615,1735834268771,37093.8587,9.58e-05,2]
[347458616,1735834275690,469.82,9.263e-05,2]
[347458617,1735834276841,7239.46,9.263e-05,2]
[347458618,1735834299195,1728.62,9.266e-05,2]
[347458619,1735834313751,66371.74,9.34e-05,2]
[347458620,1735834334511,152.101,9.49e-05,2]
[347458621,1735834340304,1852.42,9.181e-05,2]
[347458622,1735834397880,47199.63,9.589e-05,2]
[347458623,1735834400453,250.0,9.151e-05,2]
[347458625,1735834428290,353.32,9.106e-05,2]
[347458626,1735834440670,1277.44,8.219e-05,2]
[347458628,1735834459349,183.69,9.404e-05,2]
[347458629,1735834485146,455.62,9.13e-05,2]
[347458630,1735834498553,188.08,7.285e-05,2]
[347458633,1735834540660,12340.42,9.113e-05,2]
[347458634,1735834540903,2042.7,9.113e-05,2]
[347458635,1735834588772,4425.64,9.113e-05,2]
[347458637,1735834621014,4352.47,9.136e-05,2]
[347458638,1735834636677,172.75,9.191e-05,2]
[347458639,1735834668202,2000.0,9.14e-05,2]
[347458640,1735834679139,183.6,9.14e-05,2]
[347458643,1735834703290,1475.75,9.091e-05,2]
[347458644,1735834709595,1317.32,9.111e-05,2]
[347458645,1735834710712,1611.65,9.575e-05,2]
[347458646,1735834710750,163.108,9.575e-05,2]
[347458647,1735834738638,250.0,9.111e-05,2]
[347458648,1735834749657,799.86,9.136e-05,2]
[347458649,1735834755956,157.17,7.397e-05,2]
[347458650,1735834756318,157.17,9.193e-05,2]
[347458651,1735834823913,-5256.266434,9.62e-05,2]
[347458652,1735834823937,-1921.1561,9.669e-05,2]
[347458653,1735834823963,-314.652,9.67e-05,2]
[347458654,1735834823988,-42507.925466,9.75e-05,2]
[347458656,1735834827511,-31031.98251141,9.75e-05,2]
[347458657,1735834827536,-500.0,9.769e-05,2]
[347458658,1735834827560,-18468.01748859,9.769e-05,2]
[347458659,1735834841202,-50000.0,9.769e-05,2]
[347458660,1735834842623,-50000.0,9.769e-05,2]
[347458661,1735834843914,-12539.62432868,9.769e-05,2]
[347458662,1735834843941,-500.0,9.769e-05,2]
[347458663,1735834843967,-500.0,9.769e-05,2]
[347458664,1735834843993,-500.0,9.769e-05,2]
[347458665,1735834844019,-241.50534606,9.769e-05,2]
[347458666,1735834844044,-35718.87032526,9.769e-05,2]
[347458667,1735834844778,-14281.12967474,9.769e-05,2]
[347458668,1735834844809,-35718.87032526,9.77e-05,2]
[347458669,1735834856289,-50000.0,9.77e-05,2]
[347458670,1735834857417,-50000.0,9.77e-05,2]
[347458671,1735834858580,-50000.0,9.77e-05,2]
[347458672,1735834859632,-50000.0,9.77e-05,2]
[347458673,1735834862414,-50000.0,9.77e-05,2]
[347458674,1735834869557,1000.0,9.289e-05,2]
[347458675,1735834873262,-44000.0,9.77e-05,2]
[347458676,1735834875235,3686.77,9.372e-05,2]
[347458677,1735834888175,232.6,9.263e-05,2]
[347458678,1735834897718,250.0,9.263e-05,2]
[347458679,1735834914323,4788.67,9.236e-05,2]
[347458680,1735834944152,1083.04,9.219e-05,2]
[347458681,1735834949447,1500.0,9.21e-05,2]
[347458682,1735834962282,152.236,9.49e-05,2]
[347458683,1735834973148,2507.02,9.21e-05,2]
[347458684,1735835053799,200.0,9.242e-05,2]
[347458685,1735835108062,150.0,8.778e-05,2]
[347458686,1735835110410,280.09917614,8.778e-05,2]
[347458687,1735835112017,3346.67,9.253e-05,2]
[347458688,1735835117543,175.31030913,8.778e-05,2]
[347458689,1735835120338,1067.72939517,9e-05,2]
[347458690,1735835130329,11298.02864303,9e-05,2]
[347458693,1735835256370,23900.0,9.186e-05,2]
[347458694,1735835276155,1000.0,9.6e-05,2]
[347458695,1735835348942,1213.56,8.219e-05,2]
[347458712,1735835407855,1852.42,9.154e-05,2]
[347459070,1735835422357,188.08,7.323e-05,2]
[347459270,1735835434613,-150.0,9.753e-05,2]
[347459272,1735835434624,-500.0,9.769e-05,2]
[347459273,1735835434635,-483.48316549,9.769e-05,2]
[347459274,1735835434646,-300.0,9.769e-05,2]
[347459275,1735835434658,-483.48316548,9.77e-05,2]
[347459276,1735835434669,-8081.03366903,9.77e-05,2]
[347459277,1735835434682,-6212.34575392,9.77e-05,2]
[347459278,1735835434719,-718.78087629,9.77e-05,2]
[347459279,1735835434749,-471.32155123,9.77e-05,2]
[347459280,1735835434859,-12257.35438428,9.77e-05,2]
[347459310,1735835437912,-515.28705452,9.77e-05,2]
[347459311,1735835437925,-766.34341095,9.77e-05,2]
[347459312,1735835437956,-322.59271212,9.77e-05,2]
[347459313,1735835437966,-1582.03728788,9.77e-05,2]
[347459336,1735835438509,-173278.3175537,9.77e-05,2]
[347459337,1735835438561,-2154.7,9.77e-05,2]
[347459338,1735835438587,-271.59021658,9.77e-05,2]
[347459347,1735835440458,-862.43445337,9.77e-05,2]
[347459348,1735835440469,-2695.27245977,9.77e-05,2]
[347459349,1735835441311,-1461.78763556,9.77e-05,2]
[347459350,1735835441322,-348.06603299,9.77e-05,2]
[347459364,1735835443133,-2465.91323407,9.77e-05,2]
[347459365,1735835443145,-12173.23152175,9.77e-05,2]
[347459366,1735835443157,-7227.4157,9.77e-05,2]
[347459374,1735835445974,-24369.52228932,9.77e-05,2]
[347459375,1735835446031,-29263.20414091,9.77e-05,2]
[347459452,1735835457533,203.3,9.175e-05,2]
[347460804,1735835474148,796.91198377,9.456e-05,2]
[347461035,1735835597127,2568.97,9.086e-05,2]
[347461037,1735835598109,152.008,9.28e-05,2]
[347461083,1735835626766,250.0,9.086e-05,2]
[347461087,1735835645911,1500.0,0.00023,120]
[347461088,1735835646389,183.6,9.11e-05,2]
[347461173,1735835703118,157.19,7.397e-05,2]
[347461191,1735835724243,164.79,9.073e-05,2]
[347461203,1735835778321,250.0,9.089e-05,2]
[347461205,1735835783446,2000.0,9.133e-05,2]
[347461208,1735835819522,1913.21,9.162e-05,2]
[347461209,1735835855269,19992.3469,9.58e-05,2]
[347461210,1735835910714,163.109,9.575e-05,2]
[347461211,1735835910753,1685.473,9.575e-05,2]
[347461212,1735835915254,1500.0,9.082e-05,2]
[347461213,1735835995545,1088.51,9.114e-05,2]
[347461215,1735836072200,1000.0,9.093e-05,2]
[347461216,1735836099897,250.0,9.087e-05,2]
[347461217,1735836119598,200.0,9.087e-05,2]
[347461218,1735836233280,151.882,9.28e-05,2]
[347461219,1735836261832,1168.65,8.219e-05,2]
[347461220,1735836298228,12501.1212,9.58e-05,2]
[347461221,1735836314472,1852.42,9.165e-05,2]
[347461222,1735836410852,279.2,9.355e-05,2]
[347461223,1735836463109,13137.14823467,9.605e-05,2]
[347461224,1735836488671,1284.48,9.195e-05,2]
[347461225,1735836508921,183.6,9.195e-05,2]
[347461226,1735836530905,33411.06951815,9.605e-05,2]
[347461231,1735836568800,250.0,9.192e-05,2]
[347461235,1735836605983,23900.0,9.219e-05,2]
[347461242,1735836632106,-7215.87593423,9.669e-05,2]
[347461243,1735836632115,-300.0,9.669e-05,2]
[347461244,1735836632124,-50910.75831701,9.67e-05,2]
[347461245,1735836632135,-4295.5834,9.67e-05,2]
[347461246,1735836632146,-3735.3983,9.67e-05,2]
[347461247,1735836632155,-94856.09942475,9.68e-05,2]
[347461248,1735836632164,-32221.0,9.753e-05,2]
[347461249,1735836632174,-150.0,9.753e-05,2]
[347461250,1735836632183,-371.0684617,9.769e-05,2]
[347461251,1735836632192,-2360.0,9.769e-05,2]
[347461252,1735836632201,-366957.20782268,9.77e-05,2]
[347461253,1735836632213,-52848.99994854,9.77e-05,2]
[347461254,1735836632272,-372.9696363,9.77e-05,2]
[347461255,1735836632287,-4721.291076,9.77e-05,2]
[347461256,1735836632298,-5646.58959978,9.77e-05,2]
[347461257,1735836632309,-2740.7226618,9.77e-05,2]
[347461258,1735836632338,-973.72974548,9.77e-05,2]
[347461259,1735836632409,-13535.20261958,9.77e-05,2]
[347461260,1735836632420,-55704.54572385,9.77e-05,2]
[347461261,1735836632459,-765.05354712,9.77e-05,2]
[347461262,1735836632471,-2411.6463063,9.77e-05,2]
[347461799,1735836638035,-9739.2,9.67e-05,2]
[347461813,1735836638166,-489.48536653,9.67e-05,2]
[347461820,1735836638216,-39771.31463347,9.67e-05,2]
[347461822,1735836638226,-63512.24519521,9.77e-05,2]
[347461825,1735836638252,-60836.06722093,9.77e-05,2]
[347461828,1735836638271,-500.72386877,9.77e-05,2]
[347461839,1735836638374,-5509.92248372,9.77e-05,2]
[347462046,1735836640715,-14240.46841869,9.77e-05,2]
[347462048,1735836640726,-4499.527409,9.77e-05,2]
[347462050,1735836640737,-6170.34898567,9.77e-05,2]
[347462054,1735836640761,-2790.70999999,9.77e-05,2]
[347462056,1735836640773,-136148.10374776,9.77e-05,2]
[347462058,1735836640782,-415928.80365351,9.77e-05,2]
[347462060,1735836640792,-405524.3087953,9.77e-05,2]